[Event "Late-Titled-Tuesday-Blitz-June-25-2024"]
[Site "Chess.com"]
[Date "2024.06.25"]
[Round "4"]
[White "BilodeauA"]
[Black "GothamChess"]
[Result "0-1"]
[WhiteElo "2986"]
[BlackElo "2758"]
[TimeControl "180+1"]
[EndTime "14:38:33 PDT"]
[Termination "GothamChess won by resignation"]

1. e4 {[%clk 0:03:00.9]} 1... d5 {[%clk 0:02:57.7]} 2. exd5 {[%clk 0:03:00.4]}
2... Qxd5 {[%clk 0:02:58.6]} 3. Nc3 {[%clk 0:03:00.1]} 3... Qa5 {[%clk
0:02:59.3]} 4. Nf3 {[%clk 0:02:58.2]} 4... Nf6 {[%clk 0:02:59.8]} 5. d4 {[%clk
0:02:50.5]} 5... Bf5 {[%clk 0:02:59.7]} 6. Ne5 {[%clk 0:02:45.8]} 6... c6 {[%clk
0:02:59.2]} 7. a4 {[%clk 0:02:37.9]} 7... Nbd7 {[%clk 0:02:45.1]} 8. Nc4 {[%clk
0:02:37.8]} 8... Qc7 {[%clk 0:02:44.8]} 9. a5 {[%clk 0:02:38.1]} 9... e6 {[%clk
0:02:36.4]} 10. g3 {[%clk 0:02:38.1]} 10... h5 {[%clk 0:02:33]} 11. Bf4 {[%clk
0:02:37.3]} 11... Qd8 {[%clk 0:02:21]} 12. Bg2 {[%clk 0:02:25.4]} 12... Nd5
{[%clk 0:02:16.2]} 13. Nxd5 {[%clk 0:02:11.7]} 13... cxd5 {[%clk 0:02:15.3]} 14.
Nd6+ {[%clk 0:02:11.8]} 14... Bxd6 {[%clk 0:02:14.7]} 15. Bxd6 {[%clk
0:02:12.7]} 15... Nf6 {[%clk 0:02:06]} 16. Bb4 {[%clk 0:02:11.4]} 16... h4
{[%clk 0:02:01.4]} 17. c3 {[%clk 0:02:06.5]} 17... Be4 {[%clk 0:01:42.4]} 18. f3
{[%clk 0:02:05.3]} 18... Bg6 {[%clk 0:01:33.6]} 19. a6 {[%clk 0:02:05.5]} 19...
b6 {[%clk 0:01:28.3]} 20. Kf2 {[%clk 0:02:01.7]} 20... Ng8 {[%clk 0:01:13.5]}
21. Qe2 {[%clk 0:01:39.5]} 21... Ne7 {[%clk 0:01:08.4]} 22. Qb5+ {[%clk
0:01:16.9]} 22... Kf8 {[%clk 0:00:48.4]} 23. Qe2 {[%clk 0:01:16]} 23... Kg8
{[%clk 0:00:47.7]} 24. Rhe1 {[%clk 0:01:06.7]} 24... Nc6 {[%clk 0:00:46.7]} 25.
Ba3 {[%clk 0:01:06.6]} 25... Na5 {[%clk 0:00:37.8]} 26. Kg1 {[%clk 0:00:58.7]}
26... Nc4 {[%clk 0:00:34.1]} 27. Bb4 {[%clk 0:00:56.9]} 27... hxg3 {[%clk
0:00:32.9]} 28. hxg3 {[%clk 0:00:56.9]} 28... Qg5 {[%clk 0:00:29.4]} 29. Qf2
{[%clk 0:00:55.1]} 29... Rc8 {[%clk 0:00:26.2]} 30. Rad1 {[%clk 0:00:48.6]}
30... Qh6 {[%clk 0:00:24.4]} 31. Kf1 {[%clk 0:00:31.4]} 31... Qg5 {[%clk
0:00:20]} 32. Kg1 {[%clk 0:00:16.3]} 32... Qh6 {[%clk 0:00:19.6]} 33. Kf1 {[%clk
0:00:12.8]} 33... Qg5 {[%clk 0:00:20.1]} 34. Re2 {[%clk 0:00:09.4]} 34... Rh2
{[%clk 0:00:19.1]} 35. Kg1 {[%clk 0:00:09.8]} 35... Qh6 {[%clk 0:00:17.9]} 36.
Ree1 {[%clk 0:00:04]} 36... Rc6 {[%clk 0:00:08.8]} 37. b3 {[%clk 0:00:02.4]}
37... Nd6 {[%clk 0:00:08.6]} 38. Bxd6 {[%clk 0:00:02.1]} 38... Rxd6 {[%clk
0:00:09.5]} 39. Qe3 {[%clk 0:00:02.7]} 39... Qxe3+ {[%clk 0:00:07.2]} 40. Rxe3
{[%clk 0:00:03.6]} 40... Rh6 {[%clk 0:00:07.4]} 41. Kf2 {[%clk 0:00:04.3]} 41...
Rc6 {[%clk 0:00:07.8]} 42. Bf1 {[%clk 0:00:04.8]} 42... Rh2+ {[%clk 0:00:07.9]}
43. Bg2 {[%clk 0:00:05.4]} 43... Bc2 {[%clk 0:00:07.3]} 44. Rc1 {[%clk
0:00:03.9]} 44... Bxb3 {[%clk 0:00:07.8]} 45. f4 {[%clk 0:00:04.1]} 45... Bc4
{[%clk 0:00:08.1]} 46. f5 {[%clk 0:00:04.2]} 46... Rh6 {[%clk 0:00:07.4]} 47.
fxe6 {[%clk 0:00:03.8]} 47... Rhxe6 {[%clk 0:00:08.3]} 48. Rxe6 {[%clk
0:00:03.8]} 48... fxe6 {[%clk 0:00:08.8]} 49. Ke3 {[%clk 0:00:03.7]} 49... b5
{[%clk 0:00:09.2]} 50. Kf4 {[%clk 0:00:04]} 50... Rxa6 {[%clk 0:00:08.3]} 51.
Ke5 {[%clk 0:00:04.2]} 51... Ra2 {[%clk 0:00:09]} 52. Bh3 {[%clk 0:00:03.1]}
52... Re2+ {[%clk 0:00:09.6]} 53. Kd6 {[%clk 0:00:03.6]} 53... Kf7 {[%clk
0:00:08]} 54. Rf1+ {[%clk 0:00:03.4]} 54... Kg6 {[%clk 0:00:08.7]} 55. Rf8
{[%clk 0:00:03.4]} 55... Re3 {[%clk 0:00:08.2]} 56. Bxe6 {[%clk 0:00:03.7]}
56... Rxg3 {[%clk 0:00:07.8]} 57. Bxd5 {[%clk 0:00:02.1]} 57... Bxd5 {[%clk
0:00:07.8]} 58. Kxd5 {[%clk 0:00:03]} 58... Rxc3 {[%clk 0:00:08]} 59. Ra8 {[%clk
0:00:03.7]} 59... Ra3 {[%clk 0:00:05.4]} 60. Kc5 {[%clk 0:00:03.9]} 60... a6
{[%clk 0:00:05.9]} 61. d5 {[%clk 0:00:04.4]} 61... Rc3+ {[%clk 0:00:06.3]} 62.
Kb6 {[%clk 0:00:04.1]} 62... b4 {[%clk 0:00:06.6]} 63. d6 {[%clk 0:00:04.4]}
63... b3 {[%clk 0:00:04.9]} 64. d7 {[%clk 0:00:04.8]} 64... b2 {[%clk
0:00:05.2]} 65. d8=Q {[%clk 0:00:04.2]} 65... b1=Q+ {[%clk 0:00:05.8]} 66. Ka7
{[%clk 0:00:04.8]} 66... Qg1+ {[%clk 0:00:05.6]} 67. Kxa6 {[%clk 0:00:03.9]}
67... Qa1+ {[%clk 0:00:05]} 68. Kb5 {[%clk 0:00:03.6]} 68... Qb2+ {[%clk
0:00:04.9]} 69. Ka6 {[%clk 0:00:04.1]} 69... Ra3+ {[%clk 0:00:05.1]} 0-1

[Event "Late-Titled-Tuesday-Blitz-June-25-2024"]
[Site "Chess.com"]
[Date "2024.06.25"]
[Round "4"]
[White "dosto07"]
[Black "GoValya"]
[Result "1-0"]
[WhiteElo "2451"]
[BlackElo "2208"]
[TimeControl "180+1"]
[EndTime "14:38:34 PDT"]
[Termination "dosto07 won by resignation"]

1. e4 {[%clk 0:03:00.9]} 1... e6 {[%clk 0:02:59.7]} 2. d4 {[%clk 0:02:59.1]}
2... d5 {[%clk 0:02:59.9]} 3. Nd2 {[%clk 0:02:59.5]} 3... c5 {[%clk 0:03:00.1]}
4. exd5 {[%clk 0:02:59.2]} 4... exd5 {[%clk 0:03:00.1]} 5. Ngf3 {[%clk
0:02:59.3]} 5... Nf6 {[%clk 0:03:00.3]} 6. Bb5+ {[%clk 0:02:58.7]} 6... Bd7
{[%clk 0:02:59.9]} 7. Bxd7+ {[%clk 0:02:58.3]} 7... Nbxd7 {[%clk 0:03:00]} 8.
O-O {[%clk 0:02:58.8]} 8... Be7 {[%clk 0:03:00]} 9. dxc5 {[%clk 0:02:58.4]} 9...
Nxc5 {[%clk 0:02:59.8]} 10. Nb3 {[%clk 0:02:58]} 10... Nce4 {[%clk 0:02:56.9]}
11. Nbd4 {[%clk 0:02:57.4]} 11... O-O {[%clk 0:02:51.3]} 12. Be3 {[%clk
0:02:54.2]} 12... a6 {[%clk 0:02:40.9]} 13. Nf5 {[%clk 0:02:50]} 13... Rc8
{[%clk 0:02:37.8]} 14. Bd4 {[%clk 0:02:46.7]} 14... Bc5 {[%clk 0:02:33]} 15. c3
{[%clk 0:02:41.6]} 15... Bxd4 {[%clk 0:02:29.9]} 16. Qxd4 {[%clk 0:02:41]} 16...
Qd7 {[%clk 0:02:25.5]} 17. Ne3 {[%clk 0:02:37.3]} 17... h6 {[%clk 0:01:55.3]}
18. Rfe1 {[%clk 0:02:36.9]} 18... Rfd8 {[%clk 0:01:50.6]} 19. Qd3 {[%clk
0:02:12.2]} 19... Nc5 {[%clk 0:01:39.7]} 20. Qf5 {[%clk 0:02:05.2]} 20... Na4
{[%clk 0:01:36]} 21. Qxd7 {[%clk 0:01:56.3]} 21... Rxd7 {[%clk 0:01:32.7]} 22.
Re2 {[%clk 0:01:56.5]} 22... Nc5 {[%clk 0:01:26.5]} 23. Rd1 {[%clk 0:01:54.7]}
23... Rcd8 {[%clk 0:01:18.3]} 24. h3 {[%clk 0:01:49]} 24... Nce4 {[%clk
0:01:13.6]} 25. Nd2 {[%clk 0:01:41.3]} 25... Nd6 {[%clk 0:01:09.3]} 26. Nb3
{[%clk 0:01:39.6]} 26... Nc4 {[%clk 0:01:08.2]} 27. Nd4 {[%clk 0:01:32.5]} 27...
Nxe3 {[%clk 0:01:05]} 28. Rxe3 {[%clk 0:01:32.2]} 28... Ne4 {[%clk 0:01:04.7]}
29. Kf1 {[%clk 0:01:30.8]} 29... g6 {[%clk 0:00:55.8]} 30. Red3 {[%clk 0:01:29]}
30... Kg7 {[%clk 0:00:53.8]} 31. Ne2 {[%clk 0:01:27.6]} 31... Rd6 {[%clk
0:00:47.3]} 32. f3 {[%clk 0:01:24.7]} 32... Nc5 {[%clk 0:00:46.2]} 33. R3d2
{[%clk 0:01:23.1]} 33... g5 {[%clk 0:00:43.6]} 34. Nd4 {[%clk 0:01:17.4]} 34...
Kg6 {[%clk 0:00:40.2]} 35. g4 {[%clk 0:01:18]} 35... Ne6 {[%clk 0:00:36.2]} 36.
Nf5 {[%clk 0:01:13.4]} 36... R6d7 {[%clk 0:00:36.3]} 37. h4 {[%clk 0:01:11.5]}
37... Nf4 {[%clk 0:00:35.6]} 38. Kf2 {[%clk 0:01:00.7]} 38... Re8 {[%clk
0:00:26.8]} 39. hxg5 {[%clk 0:00:46.3]} 39... hxg5 {[%clk 0:00:26.6]} 40. Rh1
{[%clk 0:00:45.9]} 40... f6 {[%clk 0:00:24]} 41. Rh6+ {[%clk 0:00:41.9]} 41...
Kf7 {[%clk 0:00:24.1]} 42. Ne3 {[%clk 0:00:38.2]} 42... Rde7 {[%clk 0:00:16.4]}
43. Rh7+ {[%clk 0:00:36.2]} 43... Ke6 {[%clk 0:00:13.8]} 44. Rh6 {[%clk
0:00:27.5]} 44... Kd6 {[%clk 0:00:11.3]} 45. Nf5+ {[%clk 0:00:26.9]} 45... Kc5
{[%clk 0:00:10.6]} 46. Nxe7 {[%clk 0:00:26.4]} 46... Rxe7 {[%clk 0:00:11.5]} 47.
Rxf6 {[%clk 0:00:26.2]} 47... Re5 {[%clk 0:00:10.2]} 48. Rf5 {[%clk 0:00:25.7]}
48... Re6 {[%clk 0:00:09.5]} 49. Kg3 {[%clk 0:00:18.5]} 49... Ne2+ {[%clk
0:00:08.7]} 50. Kh2 {[%clk 0:00:16.5]} 50... Rh6+ {[%clk 0:00:07.9]} 51. Kg2
{[%clk 0:00:15.5]} 51... Nf4+ {[%clk 0:00:08.1]} 52. Rxf4 {[%clk 0:00:14.9]}
52... gxf4 {[%clk 0:00:07.9]} 53. Rd4 {[%clk 0:00:15.8]} 53... Rf6 {[%clk
0:00:07.5]} 54. Kh3 {[%clk 0:00:15.6]} 54... Kd6 {[%clk 0:00:07]} 55. g5 {[%clk
0:00:14.9]} 55... Rg6 {[%clk 0:00:06.8]} 56. Kg4 {[%clk 0:00:15.4]} 56... Ke5
{[%clk 0:00:06]} 57. Rxf4 {[%clk 0:00:15.2]} 57... b5 {[%clk 0:00:06]} 58. Rf5+
{[%clk 0:00:15.4]} 58... Ke6 {[%clk 0:00:06]} 59. f4 {[%clk 0:00:14.9]} 59... a5
{[%clk 0:00:05.4]} 60. Re5+ {[%clk 0:00:14.9]} 60... Kd6 {[%clk 0:00:04.4]} 61.
Kh5 {[%clk 0:00:15.2]} 61... Rg8 {[%clk 0:00:04.5]} 62. g6 {[%clk 0:00:14.8]}
62... b4 {[%clk 0:00:04.8]} 63. Kg5 {[%clk 0:00:10.4]} 63... bxc3 {[%clk
0:00:04.5]} 64. bxc3 {[%clk 0:00:10.7]} 64... Kc5 {[%clk 0:00:04.5]} 65. f5
{[%clk 0:00:09.8]} 65... Kc4 {[%clk 0:00:04.9]} 66. f6 {[%clk 0:00:08.5]} 66...
d4 {[%clk 0:00:03]} 67. cxd4 {[%clk 0:00:07.3]} 67... Kxd4 {[%clk 0:00:03.5]}
68. Re7 {[%clk 0:00:07.9]} 68... Kc3 {[%clk 0:00:02.9]} 69. f7 {[%clk
0:00:08.2]} 69... Rd8 {[%clk 0:00:02.5]} 70. Re8 {[%clk 0:00:08.3]} 70... Rd5+
{[%clk 0:00:02.3]} 71. Kf6 {[%clk 0:00:08.6]} 71... Kb2 {[%clk 0:00:02.5]} 72.
f8=Q {[%clk 0:00:08.9]} 1-0

[Event "Late-Titled-Tuesday-Blitz-June-25-2024"]
[Site "Chess.com"]
[Date "2024.06.25"]
[Round "4"]
[White "VD_coach"]
[Black "farzadbfd"]
[Result "1-0"]
[WhiteElo "2558"]
[BlackElo "2699"]
[TimeControl "180+1"]
[EndTime "14:38:35 PDT"]
[Termination "VD_coach won by checkmate"]

1. Nf3 {[%clk 0:02:51.4]} 1... d5 {[%clk 0:02:58.8]} 2. d4 {[%clk 0:02:52]} 2...
Nf6 {[%clk 0:02:58.7]} 3. c4 {[%clk 0:02:52.9]} 3... e6 {[%clk 0:02:58.7]} 4.
Nc3 {[%clk 0:02:53.4]} 4... Be7 {[%clk 0:02:59.1]} 5. cxd5 {[%clk 0:02:53.8]}
5... exd5 {[%clk 0:02:59]} 6. Bg5 {[%clk 0:02:54.4]} 6... O-O {[%clk 0:02:59.4]}
7. e3 {[%clk 0:02:54.8]} 7... c6 {[%clk 0:03:00]} 8. Bd3 {[%clk 0:02:55.2]} 8...
h6 {[%clk 0:03:00.6]} 9. Bh4 {[%clk 0:02:54.9]} 9... Ne8 {[%clk 0:03:00.2]} 10.
Bg3 {[%clk 0:02:52.2]} 10... Bg4 {[%clk 0:02:58.6]} 11. Qc2 {[%clk 0:02:52.3]}
11... Bd6 {[%clk 0:02:54.1]} 12. Ne5 {[%clk 0:02:49.9]} 12... Be6 {[%clk
0:02:52.4]} 13. O-O {[%clk 0:02:44.7]} 13... Nd7 {[%clk 0:02:50.2]} 14. f4
{[%clk 0:02:36.6]} 14... f5 {[%clk 0:02:46.2]} 15. Qf2 {[%clk 0:01:57.6]} 15...
Nef6 {[%clk 0:02:33.9]} 16. Bh4 {[%clk 0:01:40]} 16... Qe8 {[%clk 0:02:33.3]}
17. h3 {[%clk 0:01:30.4]} 17... Ne4 {[%clk 0:02:31.6]} 18. Bxe4 {[%clk
0:01:12.1]} 18... fxe4 {[%clk 0:02:28.1]} 19. Qg3 {[%clk 0:01:00.5]} 19... Bf5
{[%clk 0:02:28.7]} 20. Qh2 {[%clk 0:00:49.8]} 20... Be7 {[%clk 0:02:24.2]} 21.
Bf2 {[%clk 0:00:26.2]} 21... Bh7 {[%clk 0:02:14.4]} 22. g4 {[%clk 0:00:25.9]}
22... Nxe5 {[%clk 0:02:14.1]} 23. dxe5 {[%clk 0:00:25.8]} 23... Rd8 {[%clk
0:02:10.8]} 24. f5 {[%clk 0:00:24.9]} 24... Bc5 {[%clk 0:02:07]} 25. Ne2 {[%clk
0:00:22.7]} 25... Bb6 {[%clk 0:01:58.3]} 26. Kh1 {[%clk 0:00:22.5]} 26... Qe7
{[%clk 0:01:54.1]} 27. e6 {[%clk 0:00:22.2]} 27... c5 {[%clk 0:01:46.9]} 28. Nf4
{[%clk 0:00:20.2]} 28... d4 {[%clk 0:01:45.6]} 29. Qg2 {[%clk 0:00:16.5]} 29...
d3 {[%clk 0:00:51.5]} 30. Qxe4 {[%clk 0:00:16.2]} 30... d2 {[%clk 0:00:51.9]}
31. Rad1 {[%clk 0:00:14.8]} 31... Rd6 {[%clk 0:00:52.1]} 32. Nd5 {[%clk
0:00:13.8]} 32... Rxd5 {[%clk 0:00:35.1]} 33. Qxd5 {[%clk 0:00:12.4]} 33... Rd8
{[%clk 0:00:35.7]} 34. Qg2 {[%clk 0:00:10.5]} 34... g6 {[%clk 0:00:35.8]} 35. e4
{[%clk 0:00:10.2]} 35... Qf6 {[%clk 0:00:31.4]} 36. Rg1 {[%clk 0:00:09.5]} 36...
Qxb2 {[%clk 0:00:30.7]} 37. g5 {[%clk 0:00:08.2]} 37... h5 {[%clk 0:00:30.3]}
38. f6 {[%clk 0:00:07.7]} 38... Qe5 {[%clk 0:00:29]} 39. e7 {[%clk 0:00:06.6]}
39... Re8 {[%clk 0:00:28.3]} 40. Bg3 {[%clk 0:00:07]} 40... Qe6 {[%clk
0:00:28.3]} 41. Rgf1 {[%clk 0:00:07.3]} 41... Kf7 {[%clk 0:00:28.2]} 42. Rxd2
{[%clk 0:00:07.6]} 42... Bg8 {[%clk 0:00:17.8]} 43. Rd6 {[%clk 0:00:07.7]} 43...
Qc4 {[%clk 0:00:16.7]} 44. e5 {[%clk 0:00:08]} 44... Rc8 {[%clk 0:00:02.8]} 45.
e6+ {[%clk 0:00:08.9]} 45... Ke8 {[%clk 0:00:03.2]} 46. f7+ {[%clk 0:00:08.7]}
46... Kxe7 {[%clk 0:00:03.8]} 47. Rd7+ {[%clk 0:00:08.1]} 47... Kxe6 {[%clk
0:00:03.4]} 48. Rdd1 {[%clk 0:00:05]} 48... Bxf7 {[%clk 0:00:02.8]} 49. Rde1+
{[%clk 0:00:05.2]} 49... Kd7 {[%clk 0:00:03.1]} 50. Qf2 {[%clk 0:00:04.8]} 50...
Bd5+ {[%clk 0:00:02]} 51. Kh2 {[%clk 0:00:04.9]} 51... Qd4 {[%clk 0:00:02.9]}
52. Qf6 {[%clk 0:00:04.8]} 52... Qxf6 {[%clk 0:00:02.8]} 53. gxf6 {[%clk
0:00:05]} 53... c4 {[%clk 0:00:03.7]} 54. f7 {[%clk 0:00:05.4]} 54... Rf8 {[%clk
0:00:04.2]} 55. Rd1 {[%clk 0:00:04.7]} 55... Kc6 {[%clk 0:00:04.5]} 56. Rf6+
{[%clk 0:00:04.9]} 56... Kc5 {[%clk 0:00:04.9]} 57. Bd6+ {[%clk 0:00:05.4]}
57... Kb5 {[%clk 0:00:04.7]} 58. Bxf8 {[%clk 0:00:06.1]} 58... Bxf7 {[%clk
0:00:05.3]} 59. Rxf7 {[%clk 0:00:06.1]} 59... c3 {[%clk 0:00:05.8]} 60. Rg7
{[%clk 0:00:05.7]} 60... c2 {[%clk 0:00:06]} 61. Rc1 {[%clk 0:00:06.1]} 61...
Be3 {[%clk 0:00:06.3]} 62. Rxc2 {[%clk 0:00:07]} 62... Bf4+ {[%clk 0:00:06.9]}
63. Kg2 {[%clk 0:00:06.4]} 63... g5 {[%clk 0:00:07.8]} 64. Rg6 {[%clk
0:00:06.6]} 64... Ka4 {[%clk 0:00:08.2]} 65. Bh6 {[%clk 0:00:07.5]} 65... g4
{[%clk 0:00:08.1]} 66. Bxf4 {[%clk 0:00:07.7]} 66... b5 {[%clk 0:00:08.3]} 67.
Rg5 {[%clk 0:00:07.8]} 67... gxh3+ {[%clk 0:00:08.2]} 68. Kxh3 {[%clk
0:00:08.2]} 68... a5 {[%clk 0:00:09]} 69. Bc7 {[%clk 0:00:07.9]} 69... b4 {[%clk
0:00:09.9]} 70. Rxa5# {[%clk 0:00:07.9]} 1-0

[Event "Late-Titled-Tuesday-Blitz-June-25-2024"]
[Site "Chess.com"]
[Date "2024.06.25"]
[Round "4"]
[White "MaxLeto"]
[Black "Andrey-Ivanov2011"]
[Result "1-0"]
[WhiteElo "2438"]
[BlackElo "2116"]
[TimeControl "180+1"]
[EndTime "14:38:45 PDT"]
[Termination "MaxLeto won by checkmate"]

1. a3 {[%clk 0:02:59.8]} 1... a6 {[%clk 0:02:56.3]} 2. b3 {[%clk 0:03:00.7]}
2... b6 {[%clk 0:02:56.4]} 3. c3 {[%clk 0:03:01.6]} 3... c6 {[%clk 0:02:55.1]}
4. d3 {[%clk 0:03:02.5]} 4... d6 {[%clk 0:02:55.7]} 5. e3 {[%clk 0:03:03.4]}
5... e6 {[%clk 0:02:56.2]} 6. f3 {[%clk 0:03:04.3]} 6... f6 {[%clk 0:02:56.8]}
7. g3 {[%clk 0:03:05.2]} 7... g6 {[%clk 0:02:57.4]} 8. h3 {[%clk 0:03:06.1]}
8... h6 {[%clk 0:02:58]} 9. Bb2 {[%clk 0:03:01.8]} 9... Bb7 {[%clk 0:02:57]} 10.
Bg2 {[%clk 0:03:01.8]} 10... Bg7 {[%clk 0:02:57.6]} 11. Ne2 {[%clk 0:03:02.1]}
11... Ne7 {[%clk 0:02:57.5]} 12. Nd2 {[%clk 0:03:02.7]} 12... Nd7 {[%clk
0:02:57.3]} 13. Qc2 {[%clk 0:02:56]} 13... Qc7 {[%clk 0:02:54.9]} 14. c4 {[%clk
0:02:53.2]} 14... c5 {[%clk 0:02:53.1]} 15. Nf4 {[%clk 0:02:46.1]} 15... Kf7
{[%clk 0:02:41.4]} 16. O-O {[%clk 0:02:33.5]} 16... Nf5 {[%clk 0:02:35.3]} 17.
Kf2 {[%clk 0:02:30.6]} 17... g5 {[%clk 0:02:32.7]} 18. Nh5 {[%clk 0:02:28.8]}
18... Rae8 {[%clk 0:02:25]} 19. g4 {[%clk 0:02:12.8]} 19... Nh4 {[%clk
0:02:12.4]} 20. Bh1 {[%clk 0:02:00.8]} 20... Ne5 {[%clk 0:02:05.5]} 21. d4
{[%clk 0:01:40.8]} 21... cxd4 {[%clk 0:01:57.4]} 22. exd4 {[%clk 0:01:41.7]}
22... Neg6 {[%clk 0:01:55.2]} 23. Rae1 {[%clk 0:01:08.8]} 23... e5 {[%clk
0:01:45.4]} 24. Ne4 {[%clk 0:00:54.4]} 24... Bxe4 {[%clk 0:01:43.4]} 25. fxe4
{[%clk 0:00:50.8]} 25... Nf4 {[%clk 0:01:41.7]} 26. Nxf4 {[%clk 0:00:45.8]}
26... gxf4 {[%clk 0:01:40.4]} 27. Bf3 {[%clk 0:00:44.4]} 27... Rhf8 {[%clk
0:01:29]} 28. Qd3 {[%clk 0:00:41.2]} 28... Ng6 {[%clk 0:01:16]} 29. d5 {[%clk
0:00:33.2]} 29... Qc5+ {[%clk 0:01:12]} 30. Kg2 {[%clk 0:00:18.8]} 30... Nh4+
{[%clk 0:01:10]} 31. Kh2 {[%clk 0:00:19]} 31... Re7 {[%clk 0:00:57.1]} 32. Bd1
{[%clk 0:00:17.2]} 32... Rc8 {[%clk 0:00:33.2]} 33. Re2 {[%clk 0:00:13.7]} 33...
Rec7 {[%clk 0:00:28.6]} 34. Rc2 {[%clk 0:00:12.9]} 34... a5 {[%clk 0:00:24.4]}
35. Be2 {[%clk 0:00:10.3]} 35... Ra7 {[%clk 0:00:21.1]} 36. Bd1 {[%clk
0:00:06.1]} 36... Rb7 {[%clk 0:00:19.2]} 37. Bc1 {[%clk 0:00:04.1]} 37... Ng6
{[%clk 0:00:16.4]} 38. Be2 {[%clk 0:00:03.7]} 38... b5 {[%clk 0:00:14.9]} 39.
Bb2 {[%clk 0:00:02.7]} 39... b4 {[%clk 0:00:12.3]} 40. a4 {[%clk 0:00:02.5]}
40... Rbc7 {[%clk 0:00:11.7]} 41. Bc1 {[%clk 0:00:02.9]} 41... Rb7 {[%clk
0:00:11.5]} 42. Bd2 {[%clk 0:00:03.5]} 42... Rbc7 {[%clk 0:00:11.1]} 43. Be1
{[%clk 0:00:04.2]} 43... Rb7 {[%clk 0:00:10.7]} 44. Bf2 {[%clk 0:00:04.9]} 44...
Qc7 {[%clk 0:00:10.1]} 45. Rfc1 {[%clk 0:00:05]} 45... Bf8 {[%clk 0:00:08.4]}
46. c5 {[%clk 0:00:03.1]} 46... dxc5 {[%clk 0:00:08.9]} 47. Qa6 {[%clk 0:00:03]}
47... Bd6 {[%clk 0:00:04.8]} 48. Bxc5 {[%clk 0:00:01.9]} 48... Qd7 {[%clk
0:00:02.4]} 49. Bxd6 {[%clk 0:00:01.2]} 49... Rxc2 {[%clk 0:00:03.3]} 50. Rxc2
{[%clk 0:00:01.7]} 50... Ra7 {[%clk 0:00:03.8]} 51. Qc6 {[%clk 0:00:01.6]} 51...
Qxc6 {[%clk 0:00:02.6]} 52. Rxc6 {[%clk 0:00:02.5]} 52... Rd7 {[%clk 0:00:02.6]}
53. Bc4 {[%clk 0:00:02.7]} 53... f3 {[%clk 0:00:02.7]} 54. Bc5 {[%clk
0:00:02.5]} 54... Nf4 {[%clk 0:00:03.1]} 55. Kg3 {[%clk 0:00:02.1]} 55... Kg6
{[%clk 0:00:01.6]} 56. Kxf3 {[%clk 0:00:02.3]} 56... h5 {[%clk 0:00:02.2]} 57.
gxh5+ {[%clk 0:00:02.1]} 57... Kxh5 {[%clk 0:00:03.1]} 58. h4 {[%clk 0:00:02.3]}
58... Kxh4 {[%clk 0:00:03.2]} 59. Rxf6 {[%clk 0:00:02.6]} 59... Kg5 {[%clk
0:00:02.7]} 60. Rf5+ {[%clk 0:00:03.1]} 60... Kg6 {[%clk 0:00:03]} 61. Rxe5
{[%clk 0:00:04]} 61... Rd8 {[%clk 0:00:03.6]} 62. Rf5 {[%clk 0:00:04.4]} 62...
Nh3 {[%clk 0:00:03.2]} 63. Kg3 {[%clk 0:00:04.3]} 63... Ng5 {[%clk 0:00:04.1]}
64. Kf4 {[%clk 0:00:03.9]} 64... Nh3+ {[%clk 0:00:03.5]} 65. Ke3 {[%clk
0:00:04.2]} 65... Ng5 {[%clk 0:00:03.9]} 66. Bd4 {[%clk 0:00:04.3]} 66... Re8
{[%clk 0:00:04.4]} 67. Rf6+ {[%clk 0:00:04.6]} 67... Kh5 {[%clk 0:00:04.2]} 68.
e5 {[%clk 0:00:05.4]} 68... Kg4 {[%clk 0:00:03.3]} 69. e6 {[%clk 0:00:05.6]}
69... Rc8 {[%clk 0:00:02.2]} 70. Rf4+ {[%clk 0:00:06]} 70... Kh5 {[%clk
0:00:02.4]} 71. e7 {[%clk 0:00:06.6]} 71... Kh6 {[%clk 0:00:02.6]} 72. d6 {[%clk
0:00:06.7]} 72... Ne6 {[%clk 0:00:02.1]} 73. Bxe6 {[%clk 0:00:06.4]} 73... Re8
{[%clk 0:00:02.9]} 74. Bf7 {[%clk 0:00:06.2]} 74... Rxe7+ {[%clk 0:00:03.4]} 75.
dxe7 {[%clk 0:00:04.9]} 75... Kh7 {[%clk 0:00:04.2]} 76. Rh4# {[%clk 0:00:04.9]}
1-0